Cogmind - Beta 9.6 @@@ ROGUE MODE // 2020.07.13 @ 13:45:03 Player: Lyft Result: Destroyed by Y-45 Defender with Beam Rifle Performance ------------- Evolutions (0) 0 Regions Visited (2) 400 Robots Destroyed (17) 85 Value Destroyed (364) 364 Prototype IDs (0) 0 Alien Tech Used (0) 0 Bonus (0) 0 TOTAL SCORE: 849 Bonus ------- None Cogmind --------- Core Integrity 0/250 Matter 300/300 Energy 99/100 System Corruption 0% Temperature Cool (23) Movement Core (550) Ox10 Location -10/Mines Parts ------- > --- POWER (1) -------- (None) > --- PROPULSION (2) --- (None) > --- UTILITY (2) ------ Large Storage Unit Large Storage Unit > --- WEAPON (2) ------- (None) > --- INVENTORY (16) --- Light Ion Engine Light Ion Engine Light Ion Engine Armored Wheel Armored Wheel Armored Wheel Disposable Heat Sink Rocket Launcher Peak State ------------ > --- POWER ------------ Ion Engine > --- PROPULSION ------- Light Treads Armored Wheel > --- UTILITY ---------- Disposable Heat Sink Small Storage Unit > --- WEAPON ----------- EM Pulse Gun Assault Rifle > --- INVENTORY -------- Ion Engine Light Treads Compact Wheel Compact Wheel EM Pulse Gun [Rating: 9] Favorites ----------- Power Ion Engine Engine Ion Engine Propulsion Light Treads Treads Light Treads Leg Aluminum Leg Wheel Armored Wheel Utility Large Storage Unit Device Disposable Heat Sink Storage Large Storage Unit Weapon EM Pulse Gun Energy Gun EM Pulse Gun Ballistic Gun Assault Rifle Build | -11 -10 -10 ------- Run | Scr Mat Min Slots Evolved . | . . . Power . | . . . Propulsion . | . . . Utility . | . . . Weapon . | . . . Parts Attached 18 | 3 7 8 Power 1 | . . 1 Engine 1 | . . 1 Core . | . . . Reactor . | . . . Propulsion 6 | 2 3 1 Treads 3 | 1 2 . Leg . | . . . Wheel 3 | 1 1 1 Hover . | . . . Flight . | . . . Utility 3 | . 3 . Device 1 | . 1 . Storage 2 | . 2 . Processor . | . . . Hackware . | . . . Protection . | . . . Artifact . | . . . Weapon 8 | 1 1 6 Energy Gun 6 | . 1 5 Energy Cannon . | . . . Ballistic Gun 2 | 1 . 1 Ballistic Cannon . | . . . Launcher . | . . . Special Weapon . | . . . Impact Weapon . | . . . Slashing Weapon . | . . . Piercing Weapon . | . . . Special Melee Weapon . | . . . Unidentified Prototypes . | . . . Parts Lost 13 | . 1 12 Power 1 | . . 1 Propulsion 3 | . . 3 Utility . | . . . Weapon 9 | . 1 8 Highest Loss Streak 8 | . 1 8 Average Slot Usage (%) 95 | . 98 91 Engine 13 | . 14 13 Treads 22 | . 25 16 Wheel 5 | . 2 10 Storage 26 | . 25 28 Energy Gun 11 | . 14 7 Ballistic Gun 13 | . 14 13 Naked Turns . | . . . Heaviest Build 41 | 13 41 41 Greatest Support 40 | 20 40 40 Greatest Overweight (x) 10 | . 3 10 Average Overweight (x) 1 | . 1 1 Largest Inventory Capacity 16 | 6 16 16 Average Capacity 14 | 6 14 16 Most Carried 13 | 6 11 13 Average Carried 9 | 4 7 12 Final Capacity 16 | 6 16 16 Final Carried 11 | 4 11 8 Class Distribution -------------------- 100% | Mutant Dominant Class ---------------- Mutant | -10/Materials Mutant | -10/Mines Resources | -11 -10 -10 ----------- Run | Scr Mat Min Matter Collected 472 | 242 149 81 Remotely . | . . . Salvage Created 637 | 63 406 168 Parts 38 | 1 22 15 Haulers Intercepted 1 | . 1 . Recyclers Shooed 2 | 1 1 . Parts Field Recycled . | . . . Retrieved Matter . | . . . Parts Self-Destructed . | . . . Prevented . | . . . Kills | -11 -10 -10 ------- Run | Scr Mat Min Combat Hostiles Destroyed 12 | . 6 6 Guns 11 | . 5 6 AOE 1 | . 1 . Classes Destroyed 7 | 1 4 2 Worker 1 | . 1 . Hauler 1 | . 1 . Recycler 1 | 1 . . Watcher 2 | . 2 . Swarmer 4 | . . 4 Grunt 7 | . 6 1 Sentry 1 | . . 1 Best Kill Streak 4 | 1 4 3 Combat Bots Only 3 | . 2 3 Max Kills in Single Turn 2 | 1 2 1 Gunslinging . | . . . Exploded 1 | . 1 . Melee . | . . . Uniques/NPCs Destroyed . | . . . Combat | -11 -10 -10 -------- Run | Scr Mat Min Damage Taken 1330 | 28 351 951 Core 259 | . 32 227 Absorbed by Shields . | . . . Core Remaining (%) 100 | 100 . . Volleys Fired 58 | 4 37 17 Largest 2 | 2 2 2 Hottest 80 | 60 60 80 Shots Fired 111 | 8 74 29 Gun 111 | 8 74 29 Cannon . | . . . Launcher . | . . . Special . | . . . Kinetic 54 | 4 37 13 Thermal 5 | . . 5 Explosive . | . . . Electromagnetic 52 | 4 37 11 Robot Hit Streak 12 | 6 12 11 Robot Miss Streak 4 | 2 4 3 Penetration Max . | . . . Secondary Targets 1 | . . 1 Max Gunslinging Chain 1 | . . 1 Shots Hit Robots 80 | 6 52 22 Core Hits 26 | 1 16 9 Critical Hits 1 | . 1 . Critical Kills 1 | . 1 . Critical Parts Destroyed . | . . . Melee Attacks . | . . . Impact . | . . . Slashing . | . . . Piercing . | . . . Sneak Attacks . | . . . Combat Hostiles . | . . . Follow-up Attacks . | . . . Damage Inflicted 1100 | 99 730 271 Guns 1002 | 54 677 271 Cannons . | . . . Explosions 98 | 45 53 . Melee . | . . . Ramming . | . . . Kinetic 438 | 29 308 101 Thermal 147 | 45 53 49 Explosive . | . . . Electromagnetic 515 | 25 369 121 Impact . | . . . Slashing . | . . . Piercing . | . . . Highest Corruption . | . . . Average Corruption . | . . . Corruption Purged . | . . . Overload Shots . | . . . Overflow Damage 8 | 6 2 . Projectiles . | . . . Explosions 8 | 6 2 . Melee . | . . . Knockbacks . | . . . Impact . | . . . Kinetic . | . . . Secondary . | . . . Self-Inflicted Damage 52 | 28 24 . Shots 2 | 1 1 . Rammed . | . . . Targets Rammed . | . . . Kicked . | . . . Crushed . | . . . Highest Temperature 131 | 12 54 131 Average Temperature 34 | 12 22 54 Received Heat Transfer 555 | . 180 375 Siege Activations . | . . . Robots Corrupted . | . . . Combat Hostiles . | . . . Parts Fried 2 | . 2 . Impact Corruptions . | . . . Robots Melted . | . . . Combat Hostiles . | . . . Parts Melted . | . . . Heat Transferred 200 | 50 50 100 Parts Sabotaged . | . . . Parts Stolen . | . . . Parts Stripped . | . . . Power Chain Reactions 2 | 1 1 . Missiles Intercepted . | . . . Alert | -11 -10 -10 ------- Run | Scr Mat Min Peak Influence 106 | 5 106 102 Average Influence 48 | 1 43 58 Maximum Alert Level . | . . . Low Security (%) 100 | 100 100 100 Level 1 . | . . . Level 2 . | . . . Level 3 . | . . . Level 4 . | . . . Level 5 . | . . . High Security . | . . . Max Security . | . . . Squads Dispatched 2 | . 2 . Investigation 1 | . 1 . Extermination . | . . . Reinforcement 1 | . 1 . Assault . | . . . Garrison . | . . . Intercept . | . . . Construction Impeded . | . . . Haulers Reinforced . | . . . Stealth | -11 -10 -10 --------- Run | Scr Mat Min Distress Signals . | . . . Communications Jammed . | . . . Distress Signals . | . . . Times Spotted 25 | . 11 14 Peak Tracking Total 6 | . 3 6 Tactical Retreats 3 | . 1 2 Traps | -11 -10 -10 ------- Run | Scr Mat Min Traps Triggered . | . . . Indirectly . | . . . Trap Hack Attempts . | . . . Triggered . | . . . Disarmed . | . . . Reprogrammed . | . . . Reused . | . . . Traps Extracted . | . . . Installed . | . . . Triggered . | . . . Machines | -11 -10 -10 ---------- Run | Scr Mat Min Machines Disabled . | . . . Max in Single Turn . | . . . Machines Sabotaged . | . . . Garrisons Compromised . | . . . Overloaded Fab Kills . | . . . Fab Network Shutdowns . | . . . Hacking | -11 -10 -10 --------- Run | Scr Mat Min Machines Accessed 5 | . 5 . Terminals 4 | . 4 . Fabricators . | . . . Repair Stations 1 | . 1 . Recycling Units . | . . . Scanalyzers . | . . . Garrison Access . | . . . Total Hacks 14 | . 14 . Successful 9 | . 9 . Failed 4 | . 4 . Catastrophic . | . . . Database Lockouts 1 | . 1 . Manual 14 | . 14 . Terminals 13 | . 13 . Fabricators . | . . . Repair Stations 1 | . 1 . Recycling Units . | . . . Scanalyzers . | . . . Garrison Access . | . . . Terminal Hacks 4 | . 4 . Robot Analysis 3 | . 3 . Terminal Index 1 | . 1 . Fabricator Hacks . | . . . Repair Station Hacks . | . . . Recycling Unit Hacks . | . . . Scanalyzer . | . . . Garrison Access Hacks . | . . . Unauthorized Hacks 5 | . 5 . Terminals 4 | . 4 . Track 1 | . 1 . Botnet 2 | . 2 . Operators 1 | . 1 . Fabricators . | . . . Repair Stations 1 | . 1 . Mechanics 1 | . 1 . Recycling Units . | . . . Scanalyzers . | . . . Garrison Access . | . . . Data Cores Recovered . | . . . Used . | . . . Hacking Detections 4 | . 4 . Full Trace Events . | . . . Feedback Events . | . . . Feedback Blocked . | . . . Robot Schematics Acquired . | . . . Robots Built . | . . . Matter . | . . . Time . | . . . Total Robot Build Rating . | . . . Part Schematics Acquired . | . . . Parts Built . | . . . Matter . | . . . Time . | . . . Total Part Build Rating . | . . . Parts Repaired . | . . . Time . | . . . Parts Recycled . | . . . Recycled Matter . | . . . Retrieved Matter . | . . . Retrieved Components . | . . . Parts Scanalyzed . | . . . Part Schematics Acquired . | . . . Parts Damaged . | . . . Bothacking | -11 -10 -10 ------------ Run | Scr Mat Min Used RIF Installer . | . . . Robots Hacked . | . . . Non-combat . | . . . Combat . | . . . Robot Hacks Applied . | . . . Relay Couplers Released . | . . . Robots Rewired . | . . . Allies Hacked . | . . . Hacks Repelled . | . . . Allies | -11 -10 -10 -------- Run | Scr Mat Min Total Allies . | . . . Largest Group . | . . . Highest-Rated Group . | . . . Highest-Rated Ally . | . . . Total Orders . | . . . Ally Attacks . | . . . Total Damage . | . . . Kills . | . . . Allies Corrupted . | . . . Allies Melted . | . . . Intel | -11 -10 -10 ------- Run | Scr Mat Min Robot Analysis Total 3 | . 3 . Derelict Logs Recovered 1 | . . 1 Drone Launches . | . . . Drone Recoveries . | . . . Exploration | -11 -10 -10 ------------- Run | Scr Mat Min Turns Passed 1556 | 35 898 623 Spaces Moved 798 | 19 439 340 Core 2 | . . 2 Treads 570 | . 329 241 Legs 1 | 1 . . Wheels 225 | 18 110 97 Hover . | . . . Flight . | . . . Fastest Speed 100 | 100 100 120 Average Speed 161 | 101 161 165 Slowest Speed 550 | 120 180 550 Overloaded Moves . | . . . Propulsion Burnouts . | . . . Robots Hopped . | . . . Cave-ins Triggered . | . . . Exploration Rate (%) 47 | 3 66 74 Regions Visited 2 Branch Regions 1 Pre-discovered Areas . | . . . Known Exits Taken . | . . . Unknown Exits Taken 2 | 1 1 . Scrap Searched 1 | . . 1 Spaces Dug . | . . . Terrain Destroyed 2 | . 2 . Melee . | . . . Projectile . | . . . AOE 2 | . 2 . Actions | -11 -10 -10 --------- Run | Scr Mat Min Total 958 | 27 554 377 Wait 61 | . 55 6 Move 796 | 18 438 340 Hop . | . . . Pick Up 18 | . 13 5 Fast Attach . | . . . Attach 12 | 2 2 8 Detach . | . . . Swap 6 | 1 5 . Drop 7 | 2 4 1 Fire 58 | 4 37 17 Melee . | . . . Ram . | . . . Kick . | . . . Crush . | . . . Escape Stasis . | . . . Rewire . | . . . Trap . | . . . Miscellaneous . | . . . Route ------- -11/Scrapyard -10/Materials (discovered 2 exits: [*Mat] / [*Min]) -10/Mines (discovered 2 exits: [*Mat x2]) History --------- Turn | Location | Event 1 | -11/Scrapyard | Discovered new exit (range 3) 36 | -11/Scrapyard | Entered Materials 308 | -10/Materials | Build established: Mutant 551 | -10/Materials | Central database locked down 653 | -10/Materials | Discovered new exit (range 12) 878 | -10/Materials | Discovered new exit (range 13) 934 | -10/Materials | Entered Mines 1066 | -10/Mines | Received a Rocket Launcher from a helpful Derelict 1260 | -10/Mines | Discovered new exit (range 6) 1261 | -10/Mines | Lost 3 parts (3w) 1462 | -10/Mines | Learned 2 Materials zone layouts 1532 | -10/Mines | Discovered new exit (range 14) 1537 | -10/Mines | Core integrity fell below 50% 1549 | -10/Mines | Core integrity fell below 20% 1557 | -10/Mines | Joined a pair of Derelicts in attacking an 0b10 outpost 1557 | -10/Mines | Destroyed by Y-45 Defender with Beam Rifle Last Messages --------------- 01260_ EXIT=FOUND 01321_ K-01 Serf collects debris. 01372_ K-01 Serf cleans the Pressure Siphon. 01376_ K-01 Serf collects debris. 01462_ Acquired derelict log, extracted data. Data stored: Materials zone layouts (x2). 01531_ Lgt. Assault Rifle destroyed. 01532_ EXIT=FOUND 01542_ Critical hit. 01542_ EM Pulse Gun destroyed. 01545_ Lgt. Treads destroyed. 01548_ Ion Engine destroyed. 01549_ Sml. Laser destroyed. 01549_ Y-45 Defender destroyed. 01551_ EM Pulse Gun destroyed. 01554_ Arm. Wheel destroyed. 01557_ Acquired 22 matter. 01557_ A derelict emerges from the shadows: "We've had our eye on this brand new outpost for a little while, just waiting for an opportunity to strike. Need some help?" Map ----- +----------------------------------------------------+ | | | | | | | | | | | | | | | | | | | | | | | | | | | | | | | | | | | | | ?????????????????????????????????????????????????? | | ????????????????????????######???????????????????? | | ????????????????????????#" "##??????????????????? | | ????????????????????????!! ![#??????????????????? | | ?????????????????????????[ [|#?##???????????????? | | ????????????????????????? ### ##??????????????? | | ???????????????????????###//## #??????????????? | | ???????????????????????#*@Y #???????????????? | | ?????????"" #########!=g ##???????????????? | | ??????? gg g ##????????????????? | | ??????? ##?????####???????? | | ??????? < ### #### #????## #####???? | | ???????? ????????????# t #????# #???? | | ??????????????????????##### #???## #???? | | ??????????????????????????### ###### #???? | | ????????????????????????????## ### ##???? | | ?????????????????????????????# ##????? | | ?????????????????????????????# ## #?????? | | ?????????????????????????????# ### #?????? | | ?????????????????????????????# #?#### ##????? | | ?????????????????????????????# #????## #????? | | ?????????????????????????????# #?????## #????? | | ?????????????????????????????# #?????## #????? | | ?????????????????????????????# #???### ##???? | | ????????????????????????????? #??## #???? | | ???????????####??????????????# #### #???? | | ??????????## #??###????????# ##???? | | ????????? ### ####????# ##### #????? | | ????????? ##???# #???## ## #???? | | ?????????# #?### ###### ### #??? | | ????????????# #?# #??# #??? | | ?????# ????????# #??# ##########???## #??? | +----------------------------------------------------+ Best States ------------- Heat Dissipation 25 Coolant Potential 50 Energy Generation 10 Energy Capacity 250 Matter Stores 300 Matter Capacity 300 Sight Range 16 Terrain Scan Density 10 Evasion (%) 40 Recoil Reduction 2 Item Schematics ----------------- None Robot Schematics ------------------ None Fabricated ------------ Nothing Alien Tech Used ----------------- None Achievements -------------- None Challenges ------------ None Game ------ Seed HardlightBeamShockpuncher Manual? 0 Play Time 00:13:29 Cumulative 11.4 hours Start 2020.07.13 @ 13:34:14 End 2020.07.13 @ 13:45:03 Sessions 1 Manual Loads 0 Difficulty Rogue Special Mode None Game No. 26 Rogue 25 Adventurer 0 Explorer 1 Win Type - Total 0 Types 0/0/0/0/0/0/0 Lore% 22 Gallery% 24 Achievement% 17 Wizard Run 0 Options --------- ASCII 0 Keyboard 0 Movement Mouse Keybinds 0 Fullscreen 2 Font 24/Terminus Map View 76x50 Tactical HUD 1 Map Filters NONE Filters NONE Steam 1 RUN: 027aaf90-7d88-4880-9b80-30099d9cb447